bitfinex-derivatives/quotes_ETHF0:USTF0_20250607
["timestamp","ask_amount","ask_price","bid_price","bid_amount"]
[1749305559166,7.34925738,2513.2,2513.1,0.79541]
[1749305560566,1.15917738,2513.2,2513.1,4.00321]
[1749305561570,1.15917738,2513.2,2513.1,5.28571]
[1749305562367,1.95455738,2513.2,2513.1,0.79541]
[1749305562571,1.95455738,2513.2,2513.0,0.66]
[1749305562572,0.79541,2513.1,2513.0,0.79542]
[1749305562773,0.79544,2513.0,2512.9,1.46264]
[1749305564772,2.72103,2513.1,2513.0,0.79544]
[1749305564971,3.88066945,2513.1,2513.0,0.79544]
[1749305573187,2.61546945,2513.1,2513.0,0.79544]
[1749305576398,0.79544,2513.0,2512.9,1.46264]
[1749305576696,1.15963945,2513.0,2512.9,1.46267]
[1749305577286,1.16058417,2513.1,2512.9,5.1975]
[1749305577493,0.79538,2513.2,2513.0,1.3225]
[1749305577691,1.16071095,2513.1,2513.0,2.11794]
[1749305579701,1.95612095,2513.1,2513.0,2.11794]
[1749305580400,1.95612095,2513.1,2513.0,0.79544]
[1749305580700,0.79544,2513.0,2512.9,1.46264]
[1749305580900,1.95615095,2513.0,2512.9,1.46264]
[1749305581100,1.16071095,2513.0,2512.9,1.46264]
[1749305581601,1.16071095,2513.0,2512.9,2.81894]
[1749305583102,1.95615095,2513.0,2512.9,1.46264]
[1749305585203,0.79547,2512.9,2512.8,0.80145336]
[1749305585402,2.59908095,2512.9,2512.8,0.80145336]
[1749305586401,2.59908095,2512.9,2512.8,0.00597336]
[1749305587304,2.59908095,2512.9,2512.8,0.80147336]
[1749305588804,2.59908095,2512.9,2512.8,0.00597336]
[1749305589198,1.16071095,2512.9,2512.8,0.80147336]
[1749305589401,0.79539,2513.2,2512.8,0.00597336]
[1749305589703,1.16123663,2513.1,2513.0,4.00324]
[1749305591206,1.95664663,2513.1,2513.0,4.00324]
[1749305596513,2.61774663,2513.1,2513.0,4.00324]
[1749305597112,2.61774663,2513.1,2513.0,3.2078]
[1749305597514,1.82233663,2513.1,2512.9,0.79545]
[1749305597815,0.79547,2512.9,2512.8,0.80144336]
[1749305598015,1.95670663,2512.9,2512.8,0.80144336]
[1749305600314,1.95670663,2512.9,2512.8,0.00597336]
[1749305601421,2.60070663,2512.9,2512.8,0.00597336]
[1749305603913,6.80523663,2512.9,2512.1,0.6726]
[1749305604116,0.79572,2512.1,2512.0,3.2078]
[1749305604416,0.79572,2512.1,2512.0,0.79576]
[1749305604722,3.9788,2512.0,2511.0,3.2078]
[1749305604918,5.19741,2511.8,2511.2,0.79598]
[1749305605109,0.79597,2511.4,2511.2,0.80195336]
[1749305605420,0.79598,2511.3,2511.2,0.00597336]
[1749305606320,0.79598,2511.3,2511.2,0.80198336]
[1749305606514,0.79597,2511.4,2511.2,0.80198336]
[1749305608113,3.2078,2511.5,2511.2,0.00597336]
[1749305608313,0.79598,2511.3,2511.2,0.00597336]
[1749305609611,2.07198,2511.3,2511.2,0.00597336]
[1749305611614,7.07198,2511.3,2511.2,0.00597336]
[1749305612418,2.07198,2511.3,2511.2,0.00597336]
[1749305613318,7.07198,2511.3,2511.2,0.00597336]
[1749305613519,2.07198,2511.3,2511.2,0.00597336]
[1749305627426,5.27978,2511.3,2511.2,0.00597336]
[1749305628731,6.43091908,2511.3,2511.2,0.00597336]
[1749305629420,5.15491908,2511.3,2511.2,0.00597336]
[1749305630627,1.15113908,2511.3,2511.2,5.80198336]
[1749305630828,4.71097336,2511.8,2511.6,0.79588]
[1749305631029,0.00597336,2511.8,2511.7,1.42965]
[1749305631226,1.15907832,2511.8,2511.7,1.42965]
[1749305631528,0.00597336,2511.8,2511.7,1.42965]
[1749305631730,0.00597336,2511.8,2511.7,2.74125]
[1749305633231,4.705,2512.4,2512.2,0.79567]
[1749305633435,1.15468096,2512.3,2512.2,0.79569]
[1749305634231,1.95034096,2512.3,2512.1,0.6945]
[1749305634435,5.50065,2512.4,2512.2,2.79358]
[1749305634636,5.50065,2512.4,2512.3,1.3266]
[1749305634835,6.65607613,2512.4,2512.3,1.3266]
[1749305636033,1.15542613,2512.4,2512.3,2.12226]
[1749305636532,0.00597336,2512.5,2512.4,0.79563]
[1749305636739,0.00597336,2512.5,2512.4,2.08893]
[1749305637529,0.00597336,2512.5,2512.4,7.08893]
[1749305637730,4.00327,2513.0,2512.8,0.79549]
[1749305637938,4.00327,2513.0,2512.9,2.6437]
[1749305638140,0.79557,2512.6,2512.5,4.00339]
[1749305638345,0.79557,2512.6,2512.4,0.79561]
[1749305638643,0.00397083,2512.8,2512.4,0.79563]
[1749305638840,0.79562,2512.5,2512.4,0.79563]
[1749305639039,0.00397083,2512.8,2512.4,0.79563]
[1749305639040,0.79558,2512.6,2512.4,0.79563]
[1749305639342,0.00397083,2512.8,2512.4,0.79563]
[1749305639755,0.79558,2512.6,2512.4,0.79563]
[1749305639942,0.79558,2512.6,2512.2,2.64967336]
[1749305640245,0.00397083,2512.8,2512.4,0.79563]
[1749305640640,0.79559,2512.6,2512.4,0.79563]
[1749305640841,0.79559,2512.6,2512.5,0.7956]
[1749305641143,0.79556,2512.7,2512.5,0.7956]
[1749305641544,0.79553,2512.7,2512.5,0.7956]
[1749305641738,0.79566,2512.3,2512.2,0.00597336]
[1749305642247,0.79566,2512.3,2512.2,0.80166336]
[1749305642441,0.79566,2512.3,2512.2,0.00597336]
[1749305643347,2.11946,2512.3,2512.2,0.00597336]
[1749305645949,2.11946,2512.3,2512.2,0.07488508]
[1749305647647,0.79566,2512.3,2512.2,0.07488508]
[1749305648754,5.49861,2512.5,2512.4,0.79563]
[1749305649551,5.49861,2512.5,2512.3,1.43504]
[1749305649854,0.79563,2512.4,2512.3,1.43504]
[1749305650657,5.49563,2512.4,2512.3,1.43503]
[1749305651057,5.49563,2512.4,2512.3,1.43506]
[1749305652161,5.49563,2512.4,2512.3,0.6394]
[1749305657667,5.49563,2512.4,2512.3,1.43506]
[1749305658069,5.49563,2512.4,2512.3,0.6394]
[1749305658478,6.65193549,2512.4,2512.3,0.6394]
[1749305658777,0.79566,2512.3,2512.2,0.00597336]
[1749305658969,4.62956549,2512.3,2512.2,0.00597336]
[1749305659170,4.62956549,2512.3,2512.2,0.07488508]
[1749305660274,4.62956549,2512.3,2512.2,0.00597336]
[1749305660476,3.32276549,2512.3,2512.2,0.00597336]
[1749305663478,8.02276549,2512.3,2512.2,0.00597336]
[1749305665179,3.32276549,2512.3,2512.2,0.00597336]
[1749305665379,8.02276549,2512.3,2512.2,0.00597336]
[1749305666577,8.02276549,2512.3,2512.2,0.80166336]
[1749305667480,8.02276549,2512.3,2512.2,0.00597336]
[1749305673479,5.85630549,2512.3,2512.2,0.80166336]
[1749305673980,1.15630549,2512.3,2512.2,3.41046336]
[1749305675386,1.15630549,2512.3,2512.2,3.47937508]
[1749305678885,4.7,2512.4,2512.3,0.79566]
[1749305679083,5.86035899,2512.4,2512.3,0.79566]
[1749305679682,1.16035899,2512.4,2512.3,0.79566]
[1749305679877,1.16035899,2512.4,2512.3,5.79566]
[1749305680083,3.21177083,2512.8,2512.7,0.79553]
[1749305681387,3.21177083,2512.8,2512.7,2.85613]
[1749305681991,0.00397083,2512.8,2512.7,2.85613]
[1749305684694,0.00397083,2512.8,2512.7,1.46283]
[1749305684989,0.00397083,2512.8,2512.6,1.44035]
[1749305685195,0.00397083,2512.8,2512.7,0.79553]
[1749305685397,0.79947083,2512.8,2512.7,0.79553]
[1749305685591,0.00397083,2512.8,2512.7,0.79553]
[1749305689391,3.21177083,2512.8,2512.6,0.79554]
[1749305689592,0.6397,2512.7,2512.6,0.79554]
[1749305689794,1.9138,2512.7,2512.6,0.79554]
[1749305689993,2.591,2512.7,2512.6,0.79554]
[1749305690700,5.3752,2512.7,2512.6,0.79554]
[1749305691395,0.6772,2512.7,2512.6,0.79554]
[1749305691593,0.00397083,2512.8,2512.7,0.86444172]
[1749305691795,4.70197083,2512.8,2512.7,0.86444172]
[1749305692098,5.85387652,2512.8,2512.7,0.86444172]
[1749305692701,5.85387652,2512.8,2512.7,0.79553]
[1749305693494,4.70197083,2512.8,2512.7,0.79553]
[1749305697299,0.00397083,2512.8,2512.7,0.79553]
[1749305697502,4.70197083,2512.8,2512.7,0.79553]
[1749305698202,0.00397083,2512.8,2512.7,0.79553]
[1749305698697,0.00397083,2512.8,2512.7,2.10423]
[1749305702207,1.15657778,2512.8,2512.7,2.10423]
[1749305702704,0.00397083,2512.8,2512.7,2.10423]
[1749305703500,1.15705384,2512.8,2512.7,2.10423]
[1749305704096,1.15705384,2512.8,2512.7,0.79553]
[1749305706006,1.15705384,2512.8,2512.7,2.13323]
[1749305709910,1.15705384,2512.8,2512.7,0.79553]
[1749305712705,1.15705384,2512.8,2512.7,2.16743]
[1749305713004,1.15705384,2512.8,2512.7,2.23634172]
[1749305713210,4.696,2513.3,2513.2,0.79538]
[1749305714511,25.54758,2513.5,2513.4,0.79531]
[1749305714706,30.24358,2513.5,2513.4,0.79531]
[1749305714905,29.4483,2513.5,2513.1,0.6904]
[1749305715115,0.79537,2513.3,2513.2,0.79537]
[1749305715510,5.49137,2513.3,2513.2,0.79537]
[1749305715808,6.78487,2513.3,2513.2,0.79537]
[1749305716011,0.79553,2512.7,2512.6,0.79554]
[1749305716309,4.00333,2512.8,2512.6,0.79555]
[1749305716504,0.6957,2512.7,2512.6,0.79555]
[1749305719410,2.6566,2512.7,2512.6,0.79555]
[1749305719607,3.45213,2512.7,2512.6,0.79555]
[1749305720010,3.45213,2512.7,2512.5,0.79557]
[1749305720207,3.45213,2512.7,2512.6,0.79556]
[1749305720408,3.45213,2512.7,2512.3,1.3884]
[1749305720409,0.79558,2512.6,2512.5,0.79559]
[1749305720612,2.6566,2512.7,2512.5,0.79559]
[1749305720814,1.2813,2512.6,2512.5,0.79559]
[1749305721310,0.7956,2512.5,2512.4,0.79562]
[1749305721517,1.2813,2512.6,2512.3,0.79565]
[1749305721714,0.79565,2512.4,2512.3,0.79566]
[1749305722217,0.79566,2512.3,2512.2,0.80164336]
[1749305722419,1.43966,2512.3,2512.2,0.80164336]
[1749305722610,1.43966,2512.3,2512.2,0.00597336]
[1749305722913,0.644,2512.3,2512.2,0.80166336]
[1749305723705,1.43966,2512.3,2512.2,0.80166336]
[1749305725019,1.43966,2512.3,2512.2,0.00597336]
[1749305725220,2.58721929,2512.3,2512.2,0.00597336]
[1749305726313,2.58721929,2512.3,2512.2,0.80166336]
[1749305727620,2.58721929,2512.3,2512.2,0.00597336]
[1749305729419,2.58721929,2512.3,2512.2,0.80166336]
[1749305730421,1.43966,2512.3,2512.2,0.00597336]
[1749305730728,2.58563535,2512.3,2512.2,0.00597336]
[1749305730914,1.43966,2512.3,2512.2,0.00597336]
[1749305731818,1.43966,2512.3,2512.2,0.80166336]
[1749305732211,1.43966,2512.3,2512.2,0.87057508]
[1749305733119,1.43966,2512.3,2512.2,0.07488508]
[1749305733323,1.43966,2512.3,2512.2,0.00597336]
[1749305733519,2.58528521,2512.3,2512.2,0.00597336]
[1749305734922,2.82329839,2512.3,2512.2,0.00597336]
[1749305735922,2.58528521,2512.3,2512.2,0.00597336]
[1749305742330,2.58528521,2512.3,2512.2,0.07488508]
[1749305746432,2.58528521,2512.3,2512.2,0.00597336]
[1749305747539,7.28028521,2512.3,2512.2,0.00597336]
[1749305756550,7.28028521,2512.3,2512.2,0.07488508]
[1749305757651,7.28028521,2512.3,2512.2,0.00597336]
[1749305760051,8.63608521,2512.3,2512.2,0.00597336]
[1749305761055,7.28028521,2512.3,2512.2,0.00597336]
[1749305761957,7.28237468,2512.3,2512.2,0.00597336]
[1749305766155,0.79575,2512.0,2511.9,0.6608]
[1749305766453,4.00355,2512.0,2511.9,0.6608]
[1749305766654,0.79585,2511.7,2511.6,0.6407]
[1749305766854,9.84636468,2511.7,2511.6,0.6407]
[1749305767051,9.05051468,2511.7,2511.2,3.2078]
[1749305767352,0.79595,2511.4,2511.3,2.0627]
[1749305767855,1.14771468,2511.4,2511.3,3.48938]
[1749305770654,0.79592,2511.5,2511.4,0.79595]
[1749305770856,1.94298828,2511.5,2511.4,2.14485]
[1749305771557,1.14706828,2511.5,2511.4,2.14485]
[1749305771754,1.14706828,2511.5,2511.4,7.14485]
[1749305772051,5.49177,2512.0,2511.8,0.7958]
[1749305772258,5.49177,2512.0,2511.9,0.6637]
[1749305772450,6.63784822,2512.0,2511.9,0.6637]
[1749305777955,6.63784822,2512.0,2511.6,2.14477]
[1749305777956,0.79587,2511.7,2511.5,0.79589]
[1749305778261,0.79587,2511.7,2511.6,0.6353]
[1749305778462,1.15725858,2511.7,2511.4,0.6456]
[1749305778671,1.15725858,2511.6,2511.4,2.07683]
[1749305778858,0.79591,2511.5,2511.4,2.07683]
[1749305779466,0.79591,2511.5,2511.3,1.3168]
[1749305779467,0.79591,2511.5,2511.3,0.79596]
[1749305779670,1.48491,2511.5,2511.3,0.79596]
[1749305780569,4.693,2511.6,2511.4,0.79595]
[1749305780868,5.48888,2511.6,2511.5,0.692]
[1749305781063,5.85015236,2511.6,2511.2,3.21377336]
[1749305781269,0.79595,2511.4,2511.3,0.692]
[1749305781567,1.95310236,2511.4,2511.3,0.692]
[1749305782066,0.79598,2511.3,2511.2,0.00597336]
[1749305782266,2.61483236,2511.3,2511.2,0.00597336]
[1749305784269,3.98513236,2511.3,2511.2,0.00597336]
[1749305792574,2.61483236,2511.3,2511.2,0.00597336]
[1749305796877,3.92893236,2511.3,2511.2,0.00597336]
[1749305797681,2.61483236,2511.3,2511.2,0.00597336]
[1749305803386,7.30883236,2511.3,2511.2,0.00597336]
[1749305803883,6.64713236,2511.3,2511.2,0.00597336]
[1749305804480,1.95313236,2511.3,2511.2,0.00597336]
[1749305804689,6.64413236,2511.3,2511.2,0.00597336]
[1749305804985,6.64413236,2511.3,2511.2,1.35997336]
[1749305807285,1.15715236,2511.3,2511.2,2.15598336]
[1749305807480,1.15715236,2511.3,2511.2,5.36378336]
[1749305808289,1.15715236,2511.3,2511.2,2.15598336]
[1749305810288,4.691,2511.4,2511.3,0.79598]
[1749305810493,5.84773959,2511.4,2511.3,2.15868]
[1749305811294,1.15673959,2511.4,2511.3,2.15868]
[1749305811494,24.078,2511.8,2511.7,0.79583]
[1749305811495,0.79583,2511.8,2511.7,0.79583]
[1749305811999,0.79586,2511.7,2511.6,0.79586]
[1749305812191,4.691,2512.0,2511.6,0.79588]
[1749305812398,0.79584,2511.8,2511.7,1.3627]
[1749305813286,0.79584,2511.8,2511.7,2.15855]
[1749305813696,0.7958,2511.9,2511.7,2.15855]
[1749305813894,0.79582,2511.8,2511.7,1.3627]
[1749305814095,1.43575,2511.8,2511.5,0.79588]
[1749305814297,3.2078,2511.7,2511.5,2.05938]
[1749305814598,3.2078,2511.7,2511.5,2.05941]
[1749305814897,0.79586,2511.7,2511.5,2.05941]
[1749305815796,0.79588,2511.6,2511.5,1.2635]
[1749305816497,0.79587,2511.7,2511.5,2.05941]
[1749305817499,0.79585,2511.7,2511.5,2.05941]
[1749305817791,1.43574,2511.8,2511.6,0.79588]
[1749305818195,0.79585,2511.7,2511.6,0.79588]
[1749305818798,1.43574,2511.8,2511.6,0.79585]
[1749305819596,0.79585,2511.7,2511.5,2.0594]
[1749305820191,0.79587,2511.7,2511.5,2.0594]
[1749305820697,0.79588,2511.6,2511.5,2.0594]
[1749305821093,0.79588,2511.6,2511.5,1.2635]
[1749305821999,0.79591,2511.5,2511.4,2.13692]
[1749305822196,0.79591,2511.5,2511.4,1.341]
[1749305822396,0.79591,2511.5,2511.4,2.13695]
[1749305823903,0.79598,2511.3,2511.2,3.21377336]
[1749305824200,0.79598,2511.3,2511.2,3.86767336]
[1749305824400,0.79598,2511.3,2511.2,4.66368336]
[1749305825395,0.79598,2511.3,2511.2,3.86767336]
[1749305825806,0.79598,2511.3,2511.2,3.21377336]
[1749305826195,0.79598,2511.3,2511.2,0.00597336]
[1749305826609,1.45838,2511.3,2511.2,0.00597336]
[1749305828109,2.73618,2511.3,2511.2,0.00597336]
[1749305829408,3.8860679,2511.3,2511.2,0.00597336]
[1749305830599,3.8860679,2511.3,2511.2,0.80198336]
[1749305830600,1.8122879,2511.3,2511.2,0.80198336]
[1749305830802,1.1498879,2511.3,2511.2,0.80198336]
[1749305831807,1.9458679,2511.3,2511.2,0.80198336]
[1749305832515,1.9458679,2511.3,2511.2,0.00597336]
[1749305832716,2.6301679,2511.3,2511.2,0.00597336]
[1749305837519,2.6301679,2511.3,2511.2,0.80198336]
[1749305838220,2.6301679,2511.3,2511.2,0.00597336]
[1749305840022,3.9809679,2511.3,2511.2,0.00597336]
[1749305840419,2.6301679,2511.3,2511.2,0.00597336]
[1749305840623,6.6338679,2511.3,2511.2,0.00597336]
[1749305840825,6.63465133,2511.3,2511.2,0.00597336]
[1749305841127,6.63465133,2511.3,2511.2,0.80198336]
[1749305841522,6.63465133,2511.3,2511.2,0.00597336]
[1749305842226,6.63465133,2511.3,2511.2,0.70397336]
[1749305842726,6.63465133,2511.3,2511.2,1.49998336]
[1749305843831,6.63465133,2511.3,2511.2,0.70397336]
[1749305845422,6.63465133,2511.3,2511.2,1.49998336]
[1749305845726,6.63465133,2511.3,2511.2,0.70397336]
[1749305846029,6.63465133,2511.3,2511.2,1.49998336]
[1749305846229,6.63521572,2511.3,2511.2,1.49998336]
[1749305846529,6.63521572,2511.3,2511.2,0.70397336]
[1749305847023,6.63521572,2511.3,2511.2,1.49998336]
[1749305847229,6.63521572,2511.3,2511.2,0.70397336]
[1749305847430,6.63521572,2511.3,2511.2,1.49998336]
[1749305849323,6.63521572,2511.3,2511.2,0.00597336]
[1749305851127,9.84301572,2511.3,2511.2,0.00597336]
[1749305857033,8.69178,2511.3,2511.2,0.00597336]
[1749305857235,9.84278712,2511.3,2511.2,0.00597336]
[1749305858234,14.04680712,2511.3,2510.2,3.2078]
[1749305858531,0.7962,2510.6,2510.5,0.6632]
[1749305858735,1.94720712,2510.6,2510.5,0.6632]
[1749305860637,1.15100712,2510.6,2510.5,1.45943]
[1749305861030,0.79626,2510.4,2510.3,0.00597336]
[1749305861238,0.79626,2510.4,2510.3,0.66917336]
[1749305861538,0.79626,2510.4,2510.3,3.47726336]
[1749305861740,0.79625,2510.5,2510.3,3.47726336]
[1749305861932,0.79625,2510.5,2510.3,2.68097336]
[1749305862132,0.79623,2510.5,2510.3,2.68097336]
[1749305862336,0.79623,2510.5,2510.4,0.79626]
[1749305862842,0.79626,2510.4,2510.3,3.47725336]
[1749305863241,0.79625,2510.5,2510.3,3.47725336]
[1749305863733,0.79625,2510.5,2510.4,0.79626]
[1749305865342,0.79626,2510.4,2510.3,3.47724336]
[1749305865840,0.79625,2510.5,2510.3,3.47724336]
[1749305866438,0.79625,2510.5,2510.4,0.79626]
[1749305867839,0.7962,2510.6,2510.5,0.79623]
[1749305868035,1.95058002,2510.6,2510.5,0.79623]
[1749305868240,6.17769,2510.7,2510.5,0.79623]
[1749305868442,1.48869,2510.7,2510.5,0.79623]
[1749305868742,6.17469,2510.7,2510.6,0.687]
[1749305868943,7.32900519,2510.7,2510.6,0.687]
[1749305871240,2.64300519,2510.7,2510.6,0.687]
[1749305871540,7.32900519,2510.7,2510.6,0.687]
[1749305873045,7.32900519,2510.7,2510.6,1.4832]
[1749305873246,7.32900519,2510.7,2510.6,0.687]
[1749305873446,7.32900519,2510.7,2510.6,1.4832]
[1749305874038,7.32900519,2510.7,2510.6,0.687]
[1749305876145,7.32900519,2510.7,2510.6,1.4832]
[1749305876650,6.63650519,2510.7,2510.6,1.4832]
[1749305877552,5.84031519,2510.7,2510.6,1.4832]
[1749305877950,6.63648519,2510.7,2510.6,1.4832]
[1749305879354,6.63648519,2510.7,2510.6,0.687]
[1749305879541,0.79623,2510.5,2510.4,0.79624]
[1749305879743,0.79623,2510.5,2510.4,1.43034]
[1749305879954,1.95142985,2510.5,2510.4,1.43034]
[1749305880246,1.15519985,2510.5,2510.4,1.43034]
[1749305881050,0.79621,2510.6,2510.5,0.79623]
[1749305881353,1.15545002,2510.6,2510.5,0.79623]
[1749305881655,1.95165002,2510.6,2510.5,0.79623]
[1749305881854,0.7962,2510.6,2510.5,0.79623]
[1749305882047,4.686,2510.7,2510.4,1.43034]
[1749305882048,0.79623,2510.5,2510.4,1.43034]
[1749305883242,1.95213113,2510.5,2510.4,1.43034]
[1749305889256,1.95213113,2510.5,2510.4,0.6341]
[1749305889851,1.95213113,2510.5,2510.4,1.43036]
[1749305891651,1.15590113,2510.5,2510.4,1.43036]
[1749305891856,1.95213113,2510.5,2510.4,1.43036]
[1749305892052,1.95213113,2510.5,2510.4,0.6341]
[1749305892361,1.95213113,2510.5,2510.4,1.43036]
[1749305893955,0.79626,2510.4,2510.3,0.00597336]
[1749305894151,2.63306113,2510.4,2510.3,0.00597336]
[1749305894351,4.01906113,2510.4,2510.3,0.00597336]
[1749305894953,1.99079,2510.3,2509.7,0.6457]
[1749305895153,0.79644,2509.9,2509.8,0.6819]
[1749305895352,1.95234113,2509.9,2509.8,0.6819]
[1749305895554,1.95234113,2509.9,2509.8,1.47835]
[1749305895555,2.60384113,2509.9,2509.8,1.47835]
[1749305897061,1.80740113,2509.9,2509.8,1.47835]
[1749305897260,1.95232113,2509.9,2509.8,1.47835]
[1749305897650,0.79642,2509.9,2509.8,1.47835]
[1749305898058,1.94937736,2509.9,2509.8,1.47835]
[1749305898650,0.79642,2509.9,2509.8,1.47835]
[1749305899060,0.79642,2509.9,2509.8,0.6819]
[1749305899457,1.94988456,2509.9,2509.8,1.47835]
[1749305899759,0.79642,2509.9,2509.8,1.47835]
[1749305900663,0.7964,2510.0,2509.9,0.7964]
[1749305900864,0.79642,2509.9,2509.8,1.47832]
[1749305902360,0.79648,2509.7,2509.6,0.00597336]
[1749305902765,0.79648,2509.7,2509.6,0.80249336]
[1749305903366,0.79648,2509.7,2509.6,0.00597336]
[1749305904265,1.48848,2509.7,2509.6,0.00597336]
[1749305905460,0.79648,2509.7,2509.6,0.80249336]
[1749305905968,0.79648,2509.7,2509.6,2.10579336]
[1749305906166,0.79648,2509.7,2509.6,1.30927336]
[1749305907965,0.79648,2509.7,2509.6,0.00597336]
[1749305911869,1.43118,2509.7,2509.6,0.00597336]
[1749305912265,2.58177768,2509.7,2509.6,0.00597336]
[1749305914772,5.78957768,2509.7,2509.6,0.00597336]
[1749305919177,9.99309768,2509.7,2508.9,0.6685]
[1749305919471,0.79671,2509.0,2508.9,0.6301]
[1749305922373,0.79671,2509.0,2508.9,1.42684]
[1749305923677,0.79671,2509.0,2508.9,0.6301]
[1749305923976,0.79671,2509.0,2508.9,1.42683]
[1749305924178,0.7967,2509.1,2508.9,1.42683]
[1749305924369,0.7967,2509.1,2509.0,2.18521]
[1749305924673,0.80261336,2509.2,2509.0,2.18518]
[1749305924871,0.80261336,2509.2,2509.1,0.6372]
[1749305925173,1.9420498,2509.2,2509.1,0.6372]
[1749305926781,1.9420498,2509.2,2509.1,1.43387]
[1749305927275,1.9420498,2509.2,2509.1,0.6372]
[1749305929779,6.6250498,2509.2,2509.1,0.6372]
[1749305930076,6.6250498,2509.2,2509.1,0.70611172]
[1749305931079,6.6250498,2509.2,2509.1,1.50278172]
[1749305931380,6.6250498,2509.2,2509.1,0.70611172]
[1749305932076,6.6250498,2509.2,2509.1,1.50278172]
[1749305932276,6.6250498,2509.2,2509.1,0.70611172]
[1749305933579,6.6250498,2509.2,2509.1,1.50278172]
[1749305933783,6.6250498,2509.2,2509.1,0.70611172]
[1749305934178,6.6250498,2509.2,2509.1,1.50278172]
[1749305934479,6.6250498,2509.2,2509.1,0.70611172]
[1749305936373,6.6250498,2509.2,2509.1,1.50278172]
[1749305936577,6.6250498,2509.2,2509.1,0.70611172]
[1749305937682,1.9420498,2509.2,2509.1,0.70611172]
[1749305937980,1.9420498,2509.2,2509.1,1.50278172]
[1749305938285,1.9420498,2509.2,2509.1,0.70611172]
[1749305938484,1.9420498,2509.2,2509.1,1.50278172]
[1749305939386,1.9420498,2509.2,2509.1,0.70611172]
[1749305939982,1.9420498,2509.2,2509.1,1.50278172]
[1749305940276,1.1454098,2509.2,2509.1,1.50278172]
[1749305940679,0.00597336,2509.2,2509.1,6.50278172]
[1749305940880,4.683,2509.8,2509.6,0.7965]
[1749305941182,0.79645,2509.8,2509.7,1.45488]
[1749305941386,6.62029233,2509.8,2509.7,0.6584]
[1749305941587,6.62029233,2509.8,2509.7,1.45488]
[1749305941788,6.62029233,2509.8,2509.7,0.6584]
[1749305941991,1.14084233,2509.8,2509.7,1.45488]
[1749305942489,1.14069387,2509.8,2509.7,0.6584]
[1749305942684,1.14069387,2509.8,2509.7,1.45488]
[1749305943083,1.14069387,2509.8,2509.7,11.01658]
[1749305943293,0.00597336,2510.0,2509.9,0.79641]
[1749305949888,0.80235336,2510.0,2509.9,0.79641]
[1749305950086,0.00597336,2510.0,2509.8,0.79643]
[1749305950295,0.80237336,2510.0,2509.9,0.79641]
[1749305950496,0.00597336,2510.0,2509.7,3.8662]
[1749305950789,0.80238336,2510.0,2509.8,0.79644]
[1749305950995,0.80237336,2510.0,2509.9,0.79641]
[1749305952897,0.79643,2509.9,2509.8,0.79643]
[1749305953396,2.14833,2509.9,2509.8,0.79643]
[1749305953797,2.14833,2509.9,2509.7,0.79644]
[1749305953992,2.14833,2509.9,2509.8,0.79644]
[1749305954491,1.3519,2509.9,2509.8,0.79644]
[1749305954691,2.14831,2509.9,2509.8,0.79644]
[1749305955195,1.3519,2509.9,2509.5,0.6536]
[1749305955396,2.14832,2509.9,2509.8,0.79644]
[1749305955594,1.3519,2509.9,2509.8,0.79644]
[1749305956099,3.86257336,2510.0,2509.9,0.79641]
[1749305956800,3.21377336,2510.0,2509.9,0.79641]
[1749305960501,0.00597336,2510.0,2509.9,0.79641]
[1749305960700,0.80234336,2510.0,2509.9,0.79641]
[1749305961102,2.10784336,2510.0,2509.9,0.79641]
[1749305962694,1.31147336,2510.0,2509.9,0.79641]
[1749305963403,0.00597336,2510.0,2509.9,0.79641]
[1749305965401,0.00597336,2510.0,2509.9,1.47021]
[1749305967903,1.14924401,2510.0,2509.9,1.47021]
[1749305998320,1.94561401,2510.0,2509.9,0.79641]
[1749305998523,0.7964,2509.9,2509.6,0.6927]
[1749305998724,1.14327065,2509.8,2509.7,0.79646]
[1749305998925,1.80147065,2509.8,2509.7,0.79646]
[1749306000527,1.80147065,2509.8,2509.7,4.00426]
[1749306003231,2.59790065,2509.8,2509.7,3.2078]
[1749306003532,3.85960065,2509.8,2509.7,3.2078]
[1749306004030,0.79652,2509.6,2509.3,0.6795]
[1749306004233,2.61980065,2509.5,2509.4,0.79656]
[1749306004436,1.82327065,2509.5,2509.4,0.79656]
[1749306004825,2.51037065,2509.5,2509.4,0.79656]
[1749306005437,3.30690065,2509.5,2509.4,0.79656]
[1749306005629,2.51037065,2509.5,2509.4,0.79656]
[1749306006432,3.87817065,2509.5,2509.4,0.79656]
[1749306008238,3.30690065,2509.5,2509.4,0.79656]
[1749306008538,2.51037065,2509.5,2509.4,0.79656]
[1749306010838,3.30690065,2509.5,2509.4,0.79656]
[1749306011433,2.51037065,2509.5,2509.4,0.79656]
[1749306012942,1.3671,2509.5,2509.4,0.79656]
[1749306013840,0.00597336,2510.0,2509.9,0.7964]
[1749306014344,1.17347801,2510.0,2509.9,0.7964]
[1749306015442,4.38127801,2510.0,2509.4,3.2078]
[1749306015648,7.82240465,2509.9,2509.5,0.7965]
[1749306015846,0.7965,2509.6,2509.5,0.7965]
[1749306016041,1.96400465,2509.6,2509.5,0.7965]
[1749306016439,1.16750465,2509.6,2509.5,0.7965]
[1749306017344,1.16766766,2509.7,2509.5,3.2078]
[1749306017644,6.11442,2509.9,2509.8,0.79643]
[1749306017842,7.28209865,2509.9,2509.8,0.79643]
[1749306018050,7.28209876,2509.9,2509.8,0.79643]
[1749306018348,7.28209876,2509.9,2509.7,0.86535172]
[1749306018542,1.16767876,2509.8,2509.7,0.86535172]
[1749306018746,1.96410876,2509.8,2509.7,0.86535172]
[1749306018951,1.16767876,2509.8,2509.7,0.86535172]
[1749306019251,1.96410876,2509.8,2509.7,0.79644]
[1749306019549,1.16767876,2509.8,2509.7,0.79644]
[1749306022252,1.16767876,2509.8,2509.7,0.86535172]
[1749306022447,1.16767876,2509.8,2509.7,1.55245172]
[1749306024251,1.16767876,2509.8,2509.7,1.48354]
[1749306027453,1.16767876,2509.8,2509.7,1.55245172]
[1749306028356,1.16767876,2509.8,2509.7,1.48354]
[1749306029356,1.16767876,2509.8,2509.7,1.55245172]
[1749306030365,1.16767876,2509.8,2509.7,1.48354]
[1749306030564,1.16767876,2509.8,2509.7,0.79644]
[1749306031067,1.81117876,2509.8,2509.7,0.79644]